bitfinex-derivatives/quotes_ETHF0:USTF0_20210405
["timestamp","ask_amount","ask_price","bid_price","bid_amount"]
[1617632784525,2.571,2109.3,2107.6,4.59]
[1617632785127,2.571,2109.3,2107.6,2.59]
[1617632786129,30.0,2109.2,2106.7,5.81]
[1617632786328,30.0,2109.1,2106.7,5.81]
[1617632786531,30.9445,2109.1,2106.7,5.81]
[1617632786929,2.90695,2106.8,2106.7,5.81]
[1617632787530,2.2819,2107.9,2106.7,5.81]
[1617632788132,2.37416904,2108.1,2106.7,5.81]
[1617632788532,2.37416904,2108.1,2106.7,7.5274]
[1617632788933,2.37416904,2108.1,2107.7,2.90695]
[1617632789136,2.37416904,2108.1,2107.7,5.55945]
[1617632789335,2.37416904,2108.1,2107.8,5.69]
[1617632791034,2.37416904,2108.1,2108.0,2.90695]
[1617632791235,2.90695,2108.9,2108.0,2.90695]
[1617632791442,2.90695,2108.9,2108.0,8.72695]
[1617632792636,13.3391,2110.9,2108.0,8.72695]
[1617632792637,2.571,2110.9,2108.1,2.0]
[1617632793037,2.571,2110.9,2109.7,2.90695]
[1617632793239,2.571,2110.9,2109.7,5.18695]
[1617632793437,2.571,2110.9,2109.8,5.71]
[1617632795039,2.571,2110.9,2110.8,2.90695]
[1617632795239,2.571,2110.9,2110.6,2.1422]
[1617632795439,2.571,2110.9,2109.7,2.28]
[1617632795440,2.571,2110.9,2110.8,5.77]
[1617632795640,2.571,2110.9,2110.8,5.75]
[1617632795840,2.571,2110.9,2110.7,5.87]
[1617632796039,2.571,2110.9,2110.8,5.43]
[1617632796440,2.571,2110.9,2109.9,5.75]
[1617632796640,2.571,2110.9,2110.8,5.8]
[1617632797045,2.571,2110.9,2110.7,2.90695]
[1617632797441,2.571,2110.9,2110.8,5.71]
[1617632797640,2.90695,2111.0,2110.8,5.71]
[1617632798241,13.7412,2112.2,2110.8,5.71]
[1617632799044,13.7412,2112.2,2111.9,2.90695]
[1617632799244,13.7412,2112.2,2111.9,4.98505]
[1617632799447,13.7412,2112.2,2112.0,5.78]
[1617632800745,13.7412,2112.2,2111.5,5.81]
[1617632800948,13.7412,2112.2,2111.9,2.90695]
[1617632801147,13.7412,2112.2,2112.1,5.88]
[1617632801347,13.7412,2112.2,2112.0,5.79]
[1617632801749,13.7412,2112.2,2112.1,5.68]
[1617632801951,13.7412,2112.2,2111.3,5.85]
[1617632802150,13.7412,2112.2,2111.3,5.83]
[1617632802348,13.7412,2112.2,2111.2,2.4808]
[1617632802349,13.7412,2112.2,2112.1,5.88]
[1617632802550,13.7412,2112.2,2112.1,2.5651]
[1617632802953,16.64815,2112.2,2112.1,8.3251]
[1617632803961,16.64815,2112.2,2112.1,5.76]
[1617632804161,16.64815,2112.2,2108.7,2.637]
[1617632804354,19.28025,2112.2,2109.9,55.9127]
[1617632804553,19.28025,2112.2,2112.1,0.2026]
[1617632804959,19.28025,2112.2,2110.4,2.90695]
[1617632805160,19.28025,2112.2,2112.1,5.71]
[1617632805369,16.64815,2112.2,2112.1,5.71]
[1617632805560,16.64815,2112.2,2110.5,5.84]
[1617632805753,16.64815,2112.2,2112.1,5.83]
[1617632806154,16.64815,2112.2,2110.6,5.83]
[1617632806354,16.64815,2112.2,2112.1,5.69]
[1617632806754,16.64815,2112.2,2111.1,74.2376]
[1617632806955,13.7412,2112.2,2111.6,2.90695]
[1617632807157,13.7412,2112.2,2112.1,5.87]
[1617632807356,13.7412,2112.2,2111.7,3.27]
[1617632807756,13.7412,2112.2,2112.1,5.82]
[1617632807956,13.7412,2112.2,2111.8,1.03]
[1617632808356,13.7412,2112.2,2112.1,5.78]
[1617632808556,13.7412,2112.2,2111.9,2.88]
[1617632808957,13.7412,2112.2,2112.1,5.81]
[1617632809157,13.0,2112.1,2112.0,1.75]
[1617632809356,16.877,2112.1,2112.0,1.75]
[1617632809557,16.877,2112.1,2111.6,5.88]
[1617632809758,14.877,2112.1,2112.0,1.48]
[1617632809960,16.877,2112.1,2111.5,5.51]
[1617632810158,16.877,2112.1,2110.9,0.16]
[1617632810356,16.877,2112.1,2112.0,1.0802]
[1617632810357,14.877,2112.1,2112.0,1.0802]
[1617632810556,14.877,2112.1,2111.0,0.03]
[1617632810757,14.877,2112.1,2112.0,0.63]
[1617632810956,17.78395,2112.1,2111.7,5.83]
[1617632811157,2.0,2112.0,2111.1,0.12]
[1617632811356,17.78395,2112.1,2111.1,0.12]
[1617632811657,17.78395,2112.1,2110.2,5.82]
[1617632811859,17.78395,2112.1,2111.2,5.73]
[1617632812057,30.0,2112.0,2110.0,3.08]
[1617632812260,30.0,2112.0,2110.3,5.13]
[1617632812261,2.0,2112.0,2110.3,5.13]
[1617632812459,2.0,2112.0,2111.3,5.75]
[1617632812658,2.0,2112.0,2110.1,0.24]
[1617632812858,2.0,2112.0,2110.4,4.85]
[1617632813058,2.0,2112.0,2111.4,5.81]
[1617632813258,2.0,2112.0,2110.2,6.58695]
[1617632813458,2.0,2112.0,2110.5,5.41]
[1617632813660,2.0,2112.0,2111.5,4.92]
[1617632813859,2.0,2112.0,2110.3,0.67]
[1617632814059,14.877,2112.1,2110.6,5.74]
[1617632814259,16.877,2112.1,2111.6,5.15]
[1617632814460,30.0,2112.0,2110.4,3.78]
[1617632814660,2.0,2111.9,2110.7,4.68]
[1617632814869,30.0,2111.8,2111.7,5.36]
[1617632815061,34.90695,2111.8,2110.5,3.43]
[1617632815259,34.90695,2111.8,2110.8,4.19]
[1617632815458,34.90695,2111.8,2111.7,0.48]
[1617632815659,34.90695,2111.8,2110.7,5.71]
[1617632815861,34.90695,2111.8,2111.7,0.11]
[1617632816260,34.90695,2111.8,2110.2,5.8]
[1617632816460,34.90695,2111.8,2111.7,1.46]
[1617632816661,34.90695,2111.8,2108.2,59.3976]
[1617632817062,2.90695,2108.3,2108.2,59.3976]
[1617632817261,5.31035,2108.3,2106.6,2.0]
[1617632817464,30.0,2108.2,2105.5,78.7281]
[1617632817662,2.0,2108.1,2107.7,3.8]
[1617632817863,30.0,2108.0,2107.7,3.8]
[1617632818063,2.0,2107.9,2106.4,5.2081]
[1617632818265,2.0,2107.9,2098.5,4.47149956]
[1617632818266,30.0,2107.8,2098.5,4.47149956]
[1617632818464,2.0,2107.7,2106.5,5.91]
[1617632818664,30.0,2107.6,2106.5,5.059]
[1617632818863,2.0,2107.5,2105.9,5.98]
[1617632819066,2.90695,2106.0,2105.1,2.90695]
[1617632819263,5.14495,2106.0,2105.1,2.90695]
[1617632819463,5.14495,2106.0,2105.8,5.78]
[1617632819662,35.14495,2106.0,2105.8,5.78]
[1617632819863,5.14495,2106.0,2105.2,5.01]
[1617632820065,5.14495,2106.0,2105.9,5.88]
[1617632820265,2.90695,2106.0,2105.9,5.88]
[1617632820465,1.895,2107.8,2105.8,3.48]
[1617632820666,111.4009,2111.5,2105.9,5.07]
[1617632820870,25.591,2111.5,2105.9,5.07]
[1617632821068,30.0,2109.2,2107.1,2.90695]
[1617632821466,30.0,2109.2,2107.2,1.11]
[1617632821467,2.0,2109.1,2107.2,1.11]
[1617632821667,1.9231,2109.9,2107.2,1.11]
[1617632821867,2.37408532,2108.2,2107.2,3.3935]
[1617632822869,2.37408532,2108.2,2107.3,2.0]
[1617632823070,2.37408532,2108.2,2107.8,2.90695]
[1617632823272,2.37408532,2108.2,2107.4,5.98]
[1617632823470,2.37408532,2108.2,2107.9,5.8]
[1617632823972,2.37408532,2108.2,2107.9,1.8094]
[1617632824171,2.37408532,2108.2,2108.0,5.69]
[1617632824570,2.0,2110.6,2108.0,5.69]
[1617632824770,30.0,2110.5,2108.0,8.3308]
[1617632824971,30.0,2110.5,2108.0,2.6408]
[1617632825173,2.0,2110.6,2109.1,2.90695]
[1617632825374,2.0,2110.6,2109.1,5.04305]
[1617632825572,2.0,2110.6,2109.2,5.78]
[1617632825971,32.571,2110.7,2109.2,5.78]
[1617632826787,32.591,2110.7,2108.6,5.8]
[1617632826972,2.0,2110.6,2108.6,5.8]
[1617632827172,2.0,2110.6,2107.6,64.1048]
[1617632827173,30.0,2110.5,2109.3,5.86]
[1617632827385,32.0,2110.5,2108.7,4.5]
[1617632827774,32.0,2110.5,2107.6,64.1048]
[1617632827775,32.0,2110.5,2109.4,5.41]
[1617632827972,32.0,2110.5,2108.8,5.96]
[1617632828373,32.0,2110.5,2109.5,5.69]
[1617632828575,32.0,2110.5,2108.9,5.95]
[1617632828775,30.0,2110.5,2108.9,5.95]
[1617632828974,2.0,2110.4,2109.6,5.32]
[1617632829175,2.90695,2109.7,2109.0,8.2075]
[1617632829575,32.90695,2109.7,2109.0,2.3575]
[1617632829976,32.90695,2109.7,2109.1,5.85]
[1617632830176,2.90695,2109.7,2109.1,5.85]
[1617632830575,2.90695,2109.7,2108.8,2.0]
[1617632830776,2.90695,2109.7,2108.8,3.42]
[1617632830978,2.90695,2109.7,2109.2,5.93]
[1617632831178,2.90695,2109.3,2109.2,2.837]
[1617632831378,0.02,2110.6,2109.2,2.837]
[1617632831578,0.02,2110.6,2109.3,7.81]
[1617632831778,2.571,2110.7,2109.3,2.0]
[1617632832178,2.571,2110.7,2109.4,5.94]
[1617632832381,5.098,2111.1,2109.5,2.0]
[1617632832779,5.098,2111.1,2109.6,5.81]
[1617632832981,5.098,2111.1,2109.7,2.0]
[1617632833179,5.098,2111.1,2110.1,2.90695]
[1617632833581,5.098,2111.1,2110.2,2.16]
[1617632833783,5.098,2111.1,2110.2,4.1494]
[1617632834181,5.098,2111.1,2110.3,2.0]
[1617632834381,0.02,2111.3,2110.3,2.0]
[1617632834581,0.02,2111.3,2110.4,5.94]
[1617632834983,0.02,2111.3,2110.5,2.0]
[1617632835186,0.02,2111.3,2110.9,2.90695]
[1617632835383,0.02,2111.3,2110.9,5.73945]
[1617632835585,0.02,2111.3,2111.0,2.31]
[1617632835783,0.02,2111.3,2111.0,0.31]
[1617632835983,0.02,2111.3,2111.0,2.31]
[1617632837084,2.90695,2111.1,2111.0,2.31]
[1617632839985,30.0,2113.0,2111.0,2.31]
[1617632840189,30.0,2113.0,2111.0,4.0216]
[1617632840986,2.571,2113.4,2111.0,4.0216]
[1617632841186,2.90695,2112.4,2112.0,2.90695]
[1617632841587,2.90695,2112.4,2112.0,8.60695]
[1617632841987,2.90695,2112.4,2112.0,5.7]
[1617632842387,32.90695,2112.4,2111.0,5.87]
[1617632842589,25.7064,2112.1,2111.0,5.87]
[1617632842789,25.7064,2112.1,2112.0,5.77]
[1617632842990,25.7064,2112.1,2109.4,2.0]
[1617632842991,25.7064,2112.1,2111.0,5.88]
[1617632843189,25.7064,2112.1,2111.3,2.90695]
[1617632843391,24.32,2112.0,2109.6,2.0]
[1617632843589,24.32,2112.0,2111.4,0.02]
[1617632843990,24.32,2112.0,2111.1,5.68]
[1617632844190,24.32,2112.0,2107.0,2.798]
[1617632844393,24.32,2112.0,2111.2,5.85]
[1617632844791,24.32,2112.0,2109.3,0.45]
[1617632844990,24.32,2112.0,2111.3,5.9]
[1617632845195,2.90695,2111.4,2111.3,5.9]
[1617632845391,27.22695,2111.4,2110.5,2.90695]
[1617632845589,27.22695,2111.4,2111.3,5.19]
[1617632845790,2.90695,2111.4,2111.3,5.19]
[1617632845993,2.90695,2111.4,2110.5,2.90695]
[1617632846191,2.90695,2111.4,2111.3,5.94]
[1617632846595,32.90695,2111.4,2110.6,5.94]
[1617632846791,35.46245,2111.4,2111.3,5.77]
[1617632847193,35.46245,2111.4,2110.6,5.93]
[1617632847393,35.46245,2111.4,2108.5,1.7656]
[1617632847394,35.46245,2111.4,2111.3,5.85]
[1617632847793,35.46245,2111.4,2110.6,5.7]
[1617632847995,32.90695,2111.4,2111.0,5.82]
[1617632848194,32.90695,2111.4,2111.3,5.9]
[1617632848393,32.90695,2111.4,2110.7,3.17]
[1617632848595,32.90695,2111.4,2111.1,5.87]
[1617632848794,32.90695,2111.4,2111.3,5.84]
[1617632848995,2.90695,2111.4,2110.8,2.76]
[1617632849194,30.0,2112.0,2111.2,5.95]
[1617632849395,30.0,2112.0,2111.3,5.82]
[1617632849594,30.0,2112.0,2111.0,0.13]
[1617632849795,23.0,2112.1,2111.0,0.13]
[1617632849994,23.0,2112.1,2111.3,5.73]
[1617632850195,23.0,2112.1,2111.0,2.94]
[1617632850596,30.0,2112.0,2111.4,5.73]
[1617632850795,30.0,2112.0,2111.1,5.94]
[1617632851196,30.0,2112.0,2111.5,5.94]
[1617632851395,30.0,2112.0,2111.1,2.90695]
[1617632851396,30.0,2112.0,2111.2,4.98]
[1617632851899,30.0,2112.0,2111.6,5.7]
[1617632852108,30.0,2112.0,2111.3,0.26]
[1617632852299,30.0,2112.0,2111.7,5.79]
[1617632852497,30.0,2112.0,2111.7,3.3158]
[1617632852697,2.0,2111.9,2111.4,5.95]
[1617632852898,30.0,2111.8,2110.5,2.63]
[1617632853096,2.90695,2110.6,2109.9,5.78695]
[1617632853297,5.46265,2110.6,2109.5,1.29]
[1617632853497,5.46265,2110.6,2110.0,5.77]
[1617632853899,5.46265,2110.6,2109.6,5.89]
[1617632854097,5.46265,2110.6,2110.1,5.91]
[1617632854298,2.90695,2110.6,2110.1,5.91]
[1617632854498,2.90695,2110.6,2109.7,5.74]
[1617632854698,2.90695,2110.6,2110.2,5.79]
[1617632855099,2.90695,2110.6,2110.5,2.90695]
[1617632855500,2.90695,2110.6,2110.5,5.72]
[1617632855900,2.90695,2110.6,2110.4,5.74]
[1617632856100,32.90695,2110.6,2110.4,5.74]
[1617632856303,35.28985,2110.6,2109.4,1.09]
[1617632856502,35.28985,2110.6,2110.0,5.69]
[1617632856802,35.28985,2110.6,2110.5,5.76]
[1617632857001,5.28985,2110.6,2109.5,0.72]
[1617632857201,30.0,2110.9,2110.5,0.16]
[1617632857601,30.0,2110.9,2109.9,0.29]
[1617632857802,30.0,2110.9,2110.6,5.74]
[1617632858004,69.1284,2111.9,2110.6,5.74]
[1617632858203,30.0,2111.4,2110.6,1.9886]
[1617632858403,30.0,2111.4,2110.7,5.34]
[1617632858605,23.0,2112.1,2110.7,5.34]
[1617632859207,32.36982549,2112.0,2110.7,5.34]
[1617632859609,2.36982549,2112.0,2110.7,5.34]
[1617632860412,32.36982549,2112.0,2110.7,5.34]
[1617632861212,2.90695,2110.8,2110.7,2.90695]
[1617632861613,2.90695,2110.8,2110.7,8.61695]
[1617632861814,2.90695,2110.8,2110.7,5.71]
[1617632862215,2.90695,2110.8,2109.7,5.83]
[1617632862616,2.90695,2110.8,2110.7,5.78]
[1617632863026,2.90695,2110.8,2109.5,5.75]
[1617632863217,1.7987,2111.5,2110.7,5.85]
[1617632863418,32.4044,2112.0,2110.7,5.85]
[1617632863621,32.4044,2112.0,2110.6,5.87]
[1617632863819,32.4044,2112.0,2110.8,5.7]
[1617632864219,32.4044,2112.0,2110.7,5.96]
[1617632864421,32.4044,2112.0,2110.9,5.74]
[1617632864819,32.4044,2112.0,2110.8,5.75]
[1617632865022,32.4044,2112.0,2111.0,5.9]
[1617632865220,2.90695,2111.1,2111.0,5.9]
[1617632865420,2.90695,2111.1,2110.9,5.51]
[1617632865620,2.90695,2111.1,2111.0,5.68]
[1617632866022,2.90695,2111.1,2111.0,2.155]
[1617632866420,2.90695,2111.1,2111.0,8.015]
[1617632867223,2.90695,2111.1,2111.0,10.92195]
[1617632870125,2.90695,2111.1,2111.0,8.015]
[1617632876930,2.90695,2111.1,2111.0,5.86]
[1617632877330,32.90695,2111.1,2109.9,5.89]
[1617632877730,32.90695,2111.1,2111.0,5.69]
[1617632877930,32.90695,2111.1,2109.9,5.87]
[1617632878332,32.90695,2111.1,2111.0,5.95]
[1617632878541,32.90695,2111.1,2108.6,2.0]
[1617632878542,32.90695,2111.1,2109.9,5.82]
[1617632878941,32.90695,2111.1,2111.0,5.83]
[1617632879142,32.90695,2111.1,2110.0,5.8]
[1617632879344,2.90695,2110.1,2110.0,5.8]
[1617632879541,5.64705,2110.1,2109.1,5.74]
[1617632879942,5.64705,2110.1,2110.0,5.8]
[1617632880142,5.64705,2110.1,2108.6,4.69]
[1617632880143,5.64705,2110.1,2109.2,0.58]
[1617632880541,5.64705,2110.1,2108.3,54.4313]
[1617632880542,26.44,2110.0,2109.1,5.77]
[1617632880742,26.44,2110.0,2108.7,4.18]
[1617632880743,26.44,2110.0,2109.3,0.95]
[1617632881143,26.44,2110.0,2109.2,5.96]
[1617632881344,2.90695,2109.3,2108.8,3.99]
[1617632881546,26.44,2109.2,2108.6,2.90695]
[1617632881745,26.44,2109.2,2108.9,5.97]
[1617632882144,26.44,2109.2,2108.6,2.90695]
[1617632882344,26.44,2109.2,2109.0,5.89]
[1617632882745,2.90695,2109.3,2108.6,2.90695]
[1617632882944,2.90695,2109.3,2109.1,5.69]
[1617632883144,32.90695,2109.3,2109.1,5.69]
[1617632883345,32.90695,2109.3,2108.8,5.89]
[1617632883545,32.90695,2109.3,2109.2,5.74]
[1617632883746,2.90695,2109.3,2109.2,5.74]
[1617632883945,2.90695,2109.3,2108.9,5.87]
[1617632884145,2.90695,2109.3,2109.2,5.43]
[1617632884345,2.571,2111.0,2109.2,7.43]
[1617632884547,2.571,2111.0,2109.2,2.0]
[1617632884746,2.571,2111.0,2109.3,5.7]
[1617632884945,2.571,2111.0,2109.4,2.0]
[1617632885145,30.0,2110.9,2109.4,2.0]
[1617632885346,30.0,2110.9,2110.2,2.90695]
[1617632885746,30.0,2110.9,2110.3,5.89]
[1617632886346,30.0,2110.9,2109.9,5.75]
[1617632886747,30.0,2110.9,2110.4,5.92]
[1617632886946,30.0,2110.9,2110.4,2.6545]
[1617632887148,2.571,2111.0,2110.4,2.6545]
[1617632887348,2.571,2111.0,2110.6,2.90695]
[1617632887748,2.571,2111.0,2110.7,7.81]
[1617632887949,30.0,2111.4,2110.7,7.81]
[1617632889350,30.0,2111.4,2110.9,2.90695]
[1617632889752,30.0,2111.4,2111.0,5.78]
[1617632891252,30.0,2111.3,2111.0,5.78]
[1617632891452,2.90695,2111.1,2111.0,5.78]
[1617632892556,32.90695,2111.1,2111.0,5.78]
[1617632893558,32.90695,2111.1,2110.5,5.93]
[1617632893759,32.90695,2111.1,2110.5,7.93]
[1617632893957,32.90695,2111.1,2111.0,5.95]
[1617632894159,32.90695,2111.1,2110.6,5.68]
[1617632894559,32.90695,2111.1,2111.0,5.91]
[1617632894760,32.90695,2111.1,2110.6,5.87]
[1617632895161,32.90695,2111.1,2111.0,5.68]
[1617632895361,32.90695,2111.1,2110.7,2.90695]
[1617632895760,32.90695,2111.1,2111.0,5.72]
[1617632896161,32.90695,2111.1,2110.7,2.90695]
[1617632896360,32.90695,2111.1,2111.0,5.81]
[1617632896759,32.90695,2111.1,2110.8,5.74]
[1617632896961,32.90695,2111.1,2111.0,5.68]
[1617632897362,32.90695,2111.1,2110.9,1.7923]
[1617632897560,32.90695,2111.1,2111.0,5.72]
[1617632897761,2.90695,2111.1,2111.0,5.72]
[1617632897961,2.90695,2111.1,2111.0,7.72]
[1617632899362,2.90695,2111.5,2111.0,8.62695]
[1617632900064,2.90695,2111.5,2111.1,2.0]
[1617632900462,2.90695,2111.5,2111.2,5.82]
[1617632900663,2.90695,2111.5,2111.3,2.0]
[1617632901065,23.0,2112.1,2111.4,5.84]
[1617632901264,23.0,2112.1,2111.4,9.5733]
[1617632901463,23.0,2112.1,2111.9,2.90695]
[1617632901664,23.0,2112.1,2111.9,5.62505]
[1617632901864,23.0,2112.1,2112.0,0.17]
[1617632902665,23.0,2112.1,2112.0,2.17]
[1617632902866,23.0,2112.1,2112.0,0.17]
[1617632903865,23.0,2112.1,2112.0,2.17]
[1617632907170,23.0,2112.1,2112.0,0.17]
[1617632907770,23.0,2112.1,2111.7,5.91]
[1617632908170,23.0,2112.1,2112.0,5.86]
[1617632908370,23.0,2112.1,2111.7,5.89]
[1617632908770,23.0,2112.1,2112.0,5.86]
[1617632908973,23.0,2112.1,2111.7,7.7382]
[1617632909171,23.0,2112.1,2111.7,9.7382]
[1617632909373,23.0,2112.1,2112.0,5.79]
[1617632909572,23.0,2112.1,2111.8,8.61695]
[1617632909973,23.0,2112.1,2112.0,5.86]
[1617632910182,23.0,2112.1,2111.9,5.92]
[1617632910473,23.0,2112.1,2112.0,5.96]
[1617632910674,53.0,2112.1,2112.0,5.96]
[1617632910874,53.0,2112.1,2111.9,5.81]
[1617632911076,53.0,2112.1,2112.0,5.68]
[1617632911475,55.90695,2112.1,2111.4,2.90695]
[1617632911677,55.90695,2112.1,2112.0,5.84]
[1617632912075,55.90695,2112.1,2111.5,5.71]
[1617632912476,55.90695,2112.1,2112.0,4.1646]
[1617632912677,55.90695,2112.1,2111.5,5.81]
[1617632913075,55.90695,2112.1,2112.0,5.94]
[1617632913276,55.90695,2112.1,2111.5,5.91]
[1617632913474,2.90695,2111.6,2111.4,2.90695]
[1617632913975,2.90695,2111.6,2111.5,5.82]
[1617632914776,23.0,2112.1,2111.5,5.82]
[1617632915575,23.0,2112.1,2112.0,2.90695]
[1617632915776,23.0,2112.1,2111.9,1.756]
[1617632915977,24.27,2112.0,2111.9,1.756]
[1617632916176,23.0,2112.1,2111.9,1.756]
[1617632916378,23.0,2112.1,2112.0,5.88]
[1617632916576,23.0,2112.1,2111.9,5.85]
[1617632916776,23.0,2112.1,2111.2,2.0]
[1617632916976,23.0,2112.1,2112.0,5.69]
[1617632917177,23.0,2112.1,2111.2,2.0]
[1617632917578,23.0,2112.1,246.65,133.56275145]
[1617632917579,23.0,2112.1,2112.0,5.88]
[1617632917778,23.0,2112.1,2111.7,2.90695]
[1617632917980,23.0,2112.1,2111.8,2.2]
[1617632918179,23.0,2112.1,2112.0,5.66]
[1617632918379,23.0,2112.1,2111.7,2.90695]
[1617632918580,23.0,2112.1,2111.9,5.84]
[1617632918779,23.0,2112.1,2112.0,5.86]
[1617632918979,23.0,2112.1,2111.8,5.92]
[1617632919179,23.0,2112.1,2111.7,2.90695]
[1617632919380,2.787,2113.0,2112.0,5.68]
[1617632919579,2.571,2113.2,2112.5,2.90695]
[1617632919782,2.571,2113.2,2112.5,5.56775]
[1617632919979,2.571,2113.2,2112.6,0.31]
[1617632921481,2.90695,2112.7,2112.6,0.31]
[1617632923086,2.90695,2112.7,2112.0,2.0]
[1617632923087,32.90695,2112.7,2112.1,5.81]
[1617632923484,30.0,2112.7,2112.6,5.81]
[1617632923684,30.0,2112.7,2112.2,5.76]
[1617632924085,30.0,2112.7,2112.6,5.8]
[1617632924484,30.0,2113.2,2112.3,5.68]
[1617632924686,30.0,2112.7,2112.6,5.87]
[1617632924885,32.4247,2112.7,2112.6,5.87]
[1617632925085,32.4247,2112.7,2112.4,5.74]
[1617632925285,32.4247,2112.7,2112.0,5.75]
[1617632925485,32.4247,2112.7,2112.6,5.7]
[1617632925686,32.4247,2112.7,2112.5,5.57]
[1617632925886,30.0,2112.7,2112.6,2.0152]
[1617632926085,30.0,2112.7,2112.6,7.5152]
[1617632926286,30.0,2112.7,2112.6,2.0152]
[1617632926687,30.0,2112.7,2112.6,7.9352]
[1617632927586,32.90695,2112.7,2112.6,7.9352]
[1617632928389,32.90695,2112.7,2112.6,7.8471]
[1617632928586,32.90695,2112.7,2112.6,5.92]
[1617632928986,32.90695,2112.7,2111.1,5.8]
[1617632929187,32.90695,2112.7,2111.3,2.4332]
[1617632929388,32.90695,2112.7,2112.6,5.78]
[1617632929590,32.90695,2112.7,2111.7,2.90695]
[1617632929991,32.90695,2112.7,2112.6,5.83]
[1617632930189,32.90695,2112.7,2111.8,5.68]
[1617632930389,32.90695,2112.7,2111.7,2.90695]
[1617632930589,32.90695,2112.7,2112.6,5.7]
[1617632930789,32.90695,2112.7,2112.0,1.84]
[1617632931189,32.90695,2112.7,2112.6,5.86]
[1617632931389,32.90695,2112.7,2112.1,1.94]
[1617632931590,2.90695,2112.2,2112.0,1.84]
[1617632931798,2.90695,2112.2,2111.4,2.90695]
[1617632931990,2.90695,2112.2,2112.1,5.7]
[1617632932190,2.90695,2112.2,2111.5,5.78]
[1617632932591,2.90695,2112.2,2112.1,5.93]
[1617632932790,2.90695,2112.2,2111.3,2.4332]
[1617632932791,32.90695,2112.2,2111.6,5.75]
[1617632933301,32.90695,2112.2,2112.1,5.68]
[1617632933594,32.90695,2112.2,2111.7,5.95]
[1617632933793,32.90695,2112.2,2112.1,5.13]
[1617632933992,32.90695,2112.2,2111.6,1.83]
[1617632934193,32.90695,2112.2,2111.8,5.73]
[1617632934392,32.90695,2112.2,2111.0,82.36355]
[1617632934593,32.90695,2112.2,2111.7,5.74]
[1617632934794,32.90695,2112.2,2111.9,5.92]
[1617632934994,32.90695,2112.2,2111.2,5.86]
[1617632935193,32.90695,2112.2,2111.8,5.83]
[1617632935394,32.90695,2112.2,2112.0,5.76]
[1617632935595,32.90695,2112.2,2111.3,5.79]
[1617632935796,32.90695,2112.2,2111.9,5.19]
[1617632935997,32.90695,2112.2,2112.1,5.71]
[1617632936199,32.90695,2112.2,2111.4,5.78]
[1617632936398,32.90695,2112.2,2112.0,5.1439]
[1617632936599,32.90695,2112.2,2112.1,0.33]
[1617632936798,32.90695,2112.2,2111.5,4.3112]
[1617632936999,32.90695,2112.2,2112.1,0.0601]
[1617632937400,32.90695,2112.2,2111.6,5.94]
[1617632937600,2.90695,2111.7,2111.3,5.93]
[1617632937799,30.0,2111.6,2109.9,5.78]
[1617632938000,30.0,2111.6,2111.4,5.77]
[1617632938402,30.0,2111.6,2110.0,5.64]
[1617632938601,30.0,2111.6,2111.5,5.77]
[1617632939001,30.0,2111.6,2110.1,5.94]
[1617632939202,30.0,2111.6,2111.5,4.95]
[1617632939601,30.0,2111.6,2110.2,5.9]
[1617632939801,32.6547,2111.6,2110.2,5.9]
[1617632940001,32.6547,2111.6,2111.5,4.93]
[1617632940202,32.6547,2111.6,2110.1,5.45]
[1617632940402,32.6547,2111.6,2110.3,5.52]
[1617632940602,32.6547,2111.6,2111.5,2.9729]
[1617632940802,32.6547,2111.6,2110.2,5.6]
[1617632941003,32.6547,2111.6,2110.4,5.7]
[1617632941202,32.6547,2111.6,2111.5,0.12]
[1617632941403,32.6547,2111.6,2110.3,5.92]
[1617632941606,30.0,2111.6,2110.5,4.93]
[1617632941802,30.0,2111.6,2110.2,5.12]
[1617632941803,30.0,2111.5,2110.4,2.5557]
[1617632942005,30.0,2111.5,2110.4,8.3357]
[1617632942204,30.0,2111.5,2110.6,5.0]
[1617632942605,30.0,2111.4,2110.5,4.65]
[1617632942805,0.9462,2111.8,2110.7,5.7]
[1617632943209,0.9462,2111.8,2110.7,2.0]
[1617632943607,0.9462,2111.8,2111.2,2.90695]
[1617632943807,0.9415,2112.5,2111.2,4.76505]
[1617632944009,0.9415,2112.5,2111.3,5.91]